bitfinex/quotes_ETHUSD_20250217
["timestamp","ask_amount","ask_price","bid_price","bid_amount"]
[1739774028349,0.04749457,2690.5,2689.9,3.71753]
[1739774028834,0.04749457,2690.5,2689.9,3.71751]
[1739774029643,0.04749457,2690.5,2689.8,3.71767]
[1739774029846,0.5693,2690.4,2689.8,3.71767]
[1739774030146,0.61679457,2690.4,2689.5,3.71815]
[1739774030358,3.5693,2690.3,2689.5,3.71815]
[1739774030517,3.5693,2690.3,2689.6,3.71794]
[1739774030836,0.04705076,2690.2,2689.6,3.71794]
[1739774031445,0.04705076,2690.2,2689.6,3.71793]
[1739774032299,0.5693,2690.1,2689.4,4.43330099]
[1739774032747,0.5693,2690.1,2689.4,4.43333099]
[1739774032948,0.04705076,2690.0,2689.6,3.71793]
[1739774033165,0.278,2689.9,2689.5,0.4433331]
[1739774033511,0.278,2689.9,2689.4,4.43329099]
[1739774033711,0.04705076,2689.8,2689.4,8.15151099]
[1739774033937,0.04705076,2689.8,2689.5,3.71811]
[1739774034454,0.04705076,2689.8,2689.6,3.71801]
[1739774034610,0.04705076,2689.8,2689.7,3.71788]
[1739774036055,0.27505076,2689.9,2689.7,3.71788]
[1739774036351,0.0449627,2689.8,2689.7,3.71788]
[1739774037248,0.0449627,2689.8,2689.5,3.71808]
[1739774037439,0.0449627,2689.8,2689.6,3.71795]
[1739774037825,0.0449627,2689.8,2689.6,4.089745]
[1739774038041,0.0449627,2689.8,2689.7,3.71788]
[1739774039966,0.0449627,2689.8,2689.5,3.71806]
[1739774040279,0.0449627,2689.8,2689.6,3.71801]
[1739774040502,0.0449627,2689.8,2689.4,3.71817]
[1739774040666,0.0449627,2689.8,2689.1,3.7186]
[1739774040667,0.5693,2689.7,2689.1,3.7186]
[1739774040864,0.61419236,2689.7,2689.2,3.7185]
[1739774041195,0.61419236,2689.7,2689.3,3.71841]
[1739774041896,0.04489236,2689.7,2689.6,3.71802]
[1739774042393,0.5693,2690.5,2690.0,3.7174]
[1739774042582,0.5693,2690.5,2689.9,3.71761]
[1739774042583,0.278,2690.4,2689.9,3.71761]
[1739774042892,0.278,2690.4,2689.9,3.71752]
[1739774043097,0.5693,2690.3,2689.4,3.71823]
[1739774043290,0.278,2690.2,2690.0,3.71736]
[1739774043448,0.5693,2690.3,2689.5,3.71816]
[1739774043449,0.5693,2690.3,2690.1,3.71733]
[1739774043646,0.277,2690.2,2690.1,3.71733]
[1739774045387,0.277,2690.4,2690.3,3.71704]
[1739774045702,0.5693,2691.0,2690.6,3.71663]
[1739774045864,0.277,2690.5,2690.4,7.43367]
[1739774046207,0.277,2690.5,2690.3,3.71696]
[1739774046358,0.277,2690.5,2690.3,3.71705]
[1739774046560,0.277,2690.5,2690.4,3.71691]
[1739774047484,0.277,2690.5,2690.3,4.31839684]
[1739774047717,0.277,2690.5,2690.3,3.71696]
[1739774049185,0.277,2690.5,2690.4,3.71691]
[1739774049737,0.277,2690.5,2690.3,3.71696]
[1739774050034,0.5693,2690.4,2690.1,3.71726]
[1739774050240,0.5693,2690.4,2689.9,3.71757]
[1739774050531,0.04511884,2690.3,2689.7,3.71782]
[1739774050730,0.04511884,2690.3,2689.8,0.371782]
[1739774050896,0.04511884,2690.3,2689.7,3.71777]
[1739774051103,0.5693,2690.1,2689.5,3.71808]
[1739774051427,0.55,2690.0,2689.2,3.71849]
[1739774051833,0.04511884,2689.9,2689.6,3.71799]
[1739774052181,0.5693,2690.1,2689.4,3.71817]
[1739774052386,0.5693,2690.1,2689.4,4.089987]
[1739774052585,0.5693,2690.1,2689.5,3.71813]
[1739774052904,0.04511884,2690.0,2689.4,4.089987]
[1739774054032,0.04511884,2690.0,2689.3,3.71841]
[1739774054033,0.5693,2689.9,2689.3,3.71841]
[1739774054337,0.5693,2689.9,2689.4,3.71824]
[1739774054515,0.5693,2689.9,2689.3,3.71841]
[1739774054830,0.04511884,2689.8,2689.1,3.71863]
[1739774055035,0.8463,2689.7,2689.1,3.71863]
[1739774055186,0.8463,2689.7,2689.3,3.71834]
[1739774055385,0.04482892,2689.6,2689.1,4.1277143]
[1739774055625,0.8463,2689.7,2689.1,7.8463443]
[1739774055834,0.8463,2689.7,2689.2,3.7185]
[1739774056010,0.8463,2689.7,2689.4,3.71828]
[1739774056214,0.8463,2689.7,2689.2,3.71846]
[1739774056603,0.8463,2689.7,2689.3,3.71843]
[1739774056790,0.8463,2689.7,2689.2,3.71846]
[1739774056992,0.04482892,2689.6,2689.2,3.71846]
[1739774057436,0.04482892,2689.6,2689.1,3.71861]
[1739774057587,0.04482892,2689.6,2689.1,3.7187]
[1739774057786,0.04482892,2689.6,2689.2,3.71857]
[1739774058085,0.04482892,2689.6,2689.0,3.71881]
[1739774058433,0.04482892,2689.6,2689.0,7.43751]
[1739774058587,0.04482892,2689.6,2689.0,3.71875]
[1739774059489,0.04482892,2689.6,2689.0,7.43752]
[1739774059718,0.04482892,2689.6,2689.0,3.71875]
[1739774060405,0.04482892,2689.6,2689.1,3.71871]
[1739774060607,0.04482892,2689.6,2689.0,3.71875]
[1739774060933,0.5693,2689.1,2688.1,0.7745]
[1739774061119,0.5693,2688.9,2688.1,3.71999]
[1739774061283,0.5693,2688.7,2688.1,3.71999]
[1739774061496,0.04482892,2688.6,2688.5,3.71954]
[1739774061739,0.278,2689.0,2688.9,3.71899]
[1739774062100,0.5693,2689.3,2689.2,3.71857]
[1739774062305,0.89101415,2689.3,2689.2,3.71857]
[1739774062533,0.8473,2689.3,2689.2,3.71857]
[1739774063238,0.8473,2689.3,2689.1,7.43734]
[1739774063441,0.8473,2689.3,2689.2,3.71857]
[1739774064910,0.5693,2689.3,2689.2,3.71857]
[1739774065118,0.277,2689.4,2689.2,0.743727]
[1739774065419,0.5693,2689.8,2689.6,3.7179]
[1739774065741,0.32083202,2689.7,2689.6,3.7179]
[1739774066450,0.32083202,2689.7,2689.5,3.71806]
[1739774066596,0.32083202,2689.7,2689.1,3.71863]
[1739774066811,0.32083202,2689.7,2689.2,3.71857]
[1739774067011,0.32083202,2689.7,2689.4,3.71821]
[1739774067246,0.32083202,2689.7,2689.6,3.71802]
[1739774067455,0.32083202,2689.7,2689.4,3.71821]
[1739774067852,0.32083202,2689.7,2689.6,3.71802]
[1739774069113,0.32083202,2689.7,2689.5,3.71808]
[1739774069319,0.32083202,2689.7,2689.2,3.71851]
[1739774069630,0.5693,2689.6,2688.9,3.71889]
[1739774069817,0.5693,2689.6,2689.1,3.71869]
[1739774070018,0.0438774,2689.5,2688.9,0.371889]
[1739774070268,0.0438774,2689.5,2688.5,4.91369503]
[1739774070269,0.5693,2689.6,2689.3,3.71834]
[1739774070450,0.5693,2689.6,2689.3,3.71839]
[1739774070634,0.0438774,2689.5,2689.3,3.71835]
[1739774071220,0.5693,2689.6,2689.3,3.71835]
[1739774071625,0.5693,2689.6,2689.2,3.71856]
[1739774071939,0.0438774,2689.5,2689.4,3.71827]
[1739774072134,0.0438774,2689.5,2689.3,3.71842]
[1739774072358,0.5693,2689.6,2688.9,3.7189]
[1739774072540,0.5693,2689.6,2689.5,3.71816]
[1739774072735,0.277,2689.7,2689.6,3.71802]
[1739774072940,0.5693,2689.8,2689.6,3.71802]
[1739774073136,0.3208774,2689.7,2689.6,3.71802]
[1739774073523,0.3208774,2689.7,2689.5,3.71816]
[1739774073747,0.3208774,2689.7,2689.6,3.71802]
[1739774074064,0.3208774,2689.7,2689.0,0.37189]
[1739774074219,0.3208774,2689.7,2688.6,0.7658]
[1739774074457,0.3208774,2689.7,2689.2,3.71848]
[1739774074711,0.3208774,2689.7,2689.3,3.71831]
[1739774075112,0.3208774,2689.7,2689.4,3.71823]
[1739774075720,0.3208774,2689.7,2689.3,3.71831]
[1739774076174,0.3208774,2689.7,2689.4,3.71819]
[1739774076810,0.3208774,2689.7,2689.3,3.71831]
[1739774076972,0.5693,2689.6,2689.1,3.71863]
[1739774077317,0.04355109,2689.5,2688.7,3.71923]
[1739774077482,0.5693,2689.4,2688.6,3.7193]
[1739774077667,0.5693,2689.4,2688.7,3.71919]
[1739774077867,0.5693,2689.2,2688.4,3.71958]
[1739774078079,0.5693,2689.2,2688.3,3.71975]
[1739774078284,0.04348764,2689.1,2688.3,3.71975]
[1739774078500,0.5693,2689.0,2688.3,3.71975]
[1739774078726,4.11432486,2689.3,2688.2,3.71988]
[1739774078727,0.5693,2688.8,2688.2,3.71988]
[1739774079096,0.04307961,2688.7,2688.2,3.71987]
[1739774080237,0.04307961,2688.7,2688.4,3.71961]
[1739774080537,0.5693,2688.8,2688.2,3.71988]
[1739774080838,0.04307961,2688.6,2688.2,3.71986]
[1739774081138,0.04307961,2688.5,2688.3,3.71974]
[1739774081539,0.5693,2688.8,2688.2,3.71986]
[1739774081683,0.5693,2688.3,2688.1,3.72008]
[1739774082091,0.5693,2688.3,2688.0,7.44031]
[1739774082292,0.5693,2688.3,2688.0,3.72015]
[1739774082542,0.5693,2688.3,2688.0,7.44031]
[1739774082737,0.5693,2688.3,2688.0,3.72015]
[1739774083042,0.5693,2688.3,2688.1,3.0]
[1739774083193,0.5693,2688.3,2687.8,3.72042]
[1739774083592,0.04271681,2688.2,2687.8,3.72042]
[1739774083904,0.277,2688.1,2687.8,3.72042]
[1739774084112,0.04271681,2688.0,2687.9,3.72037]
[1739774084526,0.04271681,2688.0,2687.6,3.72071]
[1739774085240,0.04271681,2688.0,2687.6,3.72069]
[1739774085442,0.5693,2687.9,2687.4,7.170076]
[1739774085667,0.5693,2687.9,2687.4,3.72097]
[1739774086017,0.04271681,2687.8,2687.5,3.72091]
[1739774086727,0.04271681,2687.8,2687.5,3.72085]
[1739774086928,3.60704167,2687.8,2687.0,3.72158]
[1739774087134,0.5693,2687.7,2687.0,3.72155]
[1739774087445,0.0405577,2687.6,2687.0,3.72155]
[1739774087933,4.13362486,2687.5,2686.7,3.7219]
[1739774088472,0.0405577,2687.4,2686.8,3.72187]
[1739774088768,0.278,2687.3,2686.4,0.7698]
[1739774089065,0.0405577,2687.4,2687.2,3.72133]
[1739774089249,0.278,2687.3,2686.6,3.7221]
[1739774089447,0.278,2687.3,2687.0,3.72153]
[1739774091319,0.5693,2688.0,2687.7,3.72051]
[1739774091518,0.278,2687.9,2687.7,3.72051]
[1739774091754,0.278,2687.9,2687.5,3.72087]
[1739774092273,0.5693,2687.8,2687.3,3.72115]
[1739774092423,0.5693,2687.8,2687.4,3.72103]
[1739774093052,0.5693,2687.8,2687.2,3.72121]
[1739774093271,0.5693,2687.8,2687.3,3.7212]
[1739774093651,0.5693,2687.8,2687.4,3.72105]
[1739774093857,0.5693,2687.8,2687.1,3.72147]
[1739774094133,4.13362486,2687.8,2687.2,3.7213]
[1739774094399,4.13362486,2687.8,2687.3,3.72119]
[1739774094559,4.13362486,2687.8,2687.3,3.72112]
[1739774094760,0.5693,2687.8,2687.4,3.72104]
[1739774094965,0.5693,2687.8,2687.7,3.72065]
[1739774095271,0.278,2687.8,2687.7,4.092715]
[1739774095570,0.278,2687.8,2687.7,3.72065]
[1739774097223,0.278,2687.8,2687.6,3.72078]
[1739774097632,0.278,2687.8,2687.7,3.72065]
[1739774098137,0.278,2687.8,2687.6,3.72078]
[1739774098526,0.278,2687.8,2687.6,7.44148]
[1739774098727,0.278,2687.8,2687.6,3.7207]
[1739774099722,0.278,2687.8,2687.6,3.72069]
[1739774100154,0.278,2687.8,2687.2,3.72132]
[1739774100349,0.5693,2687.7,2687.6,3.72079]
[1739774100548,0.03832561,2687.7,2687.6,3.72079]
[1739774100780,0.278,2687.8,2687.7,3.72065]
[1739774101201,0.31642553,2687.8,2687.7,3.72065]
[1739774101693,0.03842553,2687.8,2687.7,3.72065]
[1739774101853,0.5693,2688.2,2688.1,3.72009]
[1739774102056,0.88519789,2688.2,2688.1,3.72009]
[1739774102693,0.31589789,2688.2,2688.1,3.72009]
[1739774103003,0.03889789,2688.2,2688.1,3.72009]
[1739774103294,0.277,2688.2,2688.1,3.72009]
[1739774103456,0.31623389,2688.2,2688.1,3.72009]
[1739774107510,0.277,2688.2,2688.1,3.72009]
[1739774108225,0.8463,2688.2,2687.6,0.78]
[1739774108429,0.8463,2688.2,2687.8,3.72042]
[1739774108728,0.03943364,2688.1,2687.5,3.72085]
[1739774108937,0.5693,2688.0,2687.5,3.72085]
[1739774109131,0.5693,2688.0,2687.5,7.44169]
[1739774109280,0.03921573,2687.9,2687.3,7.4422]
[1739774109631,0.5693,2687.8,2687.3,3.72107]
[1739774110126,0.03921573,2687.7,2687.3,3.72107]
[1739774110330,0.5693,2687.8,2687.1,3.72138]
[1739774110483,0.03896146,2687.7,2687.3,3.72116]
[1739774110684,0.5693,2687.8,2687.3,3.72116]
[1739774110991,0.03886155,2687.7,2687.3,3.72116]
[1739774111228,0.03886155,2687.7,2687.6,3.72079]
[1739774111391,0.277,2687.7,2687.5,3.72091]
[1739774111597,0.31586155,2687.7,2687.6,3.72079]
[1739774111907,0.277,2687.8,2687.7,3.72065]
[1739774112106,0.277,2687.8,2687.7,4.50065]
[1739774112308,0.5693,2688.4,2687.7,0.78]
[1739774112479,0.31660722,2688.3,2688.2,3.71985]
[1739774113118,0.31660722,2688.3,2688.1,3.72005]
[1739774113327,0.31660722,2688.3,2688.0,3.72011]
[1739774113482,0.31660722,2688.3,2688.2,3.71996]
[1739774114931,0.278,2688.3,2688.1,3.72008]
[1739774115132,0.278,2688.3,2688.1,7.44002]
[1739774115432,0.278,2688.2,2688.1,7.44002]
[1739774115750,0.278,2688.2,2688.1,3.72]
[1739774116725,0.278,2688.2,2688.0,3.72022]
[1739774116942,0.03860722,2688.1,2688.0,3.72015]
[1739774117137,0.278,2688.2,2688.0,3.72015]
[1739774117337,0.03860722,2688.1,2688.0,3.72015]
[1739774117634,0.278,2688.2,2688.1,3.72009]
[1739774119232,0.278,2688.2,2688.0,3.72015]
[1739774119384,0.278,2688.2,2687.9,7.44057]
[1739774119601,0.278,2688.2,2687.9,3.72028]
[1739774120521,0.03860722,2688.1,2687.9,3.72028]
[1739774120721,0.278,2688.2,2687.9,3.72028]
[1739774120916,0.03860722,2688.1,2688.0,3.72019]
[1739774121124,0.278,2688.2,2688.0,3.72023]
[1739774121322,0.03860722,2688.1,2688.0,3.72023]
[1739774121648,0.278,2688.2,2687.9,3.72024]
[1739774121847,0.278,2688.2,2688.0,3.72015]
[1739774122004,0.60790722,2688.1,2687.7,3.72056]
[1739774122211,0.03860722,2688.1,2687.4,0.8235]
[1739774122459,0.03860722,2688.1,2688.0,3.72023]
[1739774124724,0.03860722,2688.1,2687.9,3.72037]
[1739774124913,0.03860722,2688.1,2687.9,3.72031]
[1739774125255,0.03860722,2688.1,2687.7,3.72058]
[1739774125455,0.03860722,2688.1,2687.8,3.7205]
[1739774126006,0.03860722,2688.1,2687.7,3.72058]
[1739774126256,0.5693,2688.0,2687.5,3.7208]
[1739774126551,0.03943369,2687.9,2687.8,3.72041]
[1739774127807,0.03943369,2687.9,2687.7,3.72063]
[1739774128012,0.03943369,2687.9,2687.8,3.72051]
[1739774129661,0.8473,2688.2,2688.1,3.72009]
[1739774129963,0.88573369,2688.2,2687.7,3.72054]
[1739774130128,0.88573369,2688.2,2687.8,3.72044]
[1739774130328,0.88573369,2688.2,2687.7,3.72054]
[1739774130709,0.88573369,2688.2,2687.8,3.72042]
[1739774131255,0.88573369,2688.2,2687.5,7.44169]
[1739774131464,0.5693,2688.1,2687.5,7.44169]
[1739774131624,0.5693,2688.1,2687.5,3.72084]
[1739774131827,0.0393792,2688.0,2687.6,3.72079]
[1739774132154,0.5693,2688.1,2687.0,0.8112]
[1739774132356,0.5693,2688.1,2687.3,3.7211]
[1739774132667,0.5693,2688.1,2687.4,3.76367167]
[1739774133366,0.5693,2688.1,2687.4,0.04273167]
[1739774133565,0.5693,2688.1,2687.5,3.72091]
[1739774133866,0.5693,2688.1,2687.4,3.72106]
[1739774134027,0.5693,2688.1,2687.6,0.04273167]
[1739774134235,0.5693,2688.1,2687.4,3.72106]
[1739774134435,0.5693,2688.1,2687.7,0.04273167]
[1739774134677,0.5693,2688.1,2687.4,3.72106]
[1739774135145,0.5693,2688.1,2687.5,0.04273167]
[1739774135862,0.5693,2688.1,2687.5,3.76365167]
[1739774136072,0.5693,2688.1,2687.5,0.04273167]
[1739774136578,0.5693,2687.9,2687.3,3.72119]
[1739774136724,0.5693,2687.9,2687.4,0.04273167]
[1739774136927,0.5693,2687.9,2687.4,3.76371167]
[1739774137146,0.5693,2687.9,2687.6,3.72072]
[1739774137567,0.5693,2687.9,2687.7,0.04273167]
[1739774137774,0.5693,2687.9,2687.2,3.72125]
[1739774137941,0.5693,2687.9,2687.3,0.04120554]
[1739774138543,1.31424017,2687.9,2687.3,3.76230554]
[1739774139352,1.31424017,2687.9,2687.3,0.04120554]
[1739774139856,0.18642402,2687.8,2687.3,0.04120554]
[1739774140180,0.18642402,2687.8,2687.2,3.72125]
[1739774140397,0.18642402,2687.8,2687.3,0.04120554]
[1739774140883,0.18642402,2687.8,2687.2,3.72121]
[1739774141085,0.18642402,2687.8,2687.4,0.04120554]
[1739774141286,0.18642402,2687.8,2687.0,0.8112]
[1739774141456,1.31424017,2687.9,2687.5,0.04120554]
[1739774141658,1.31424017,2687.9,2687.4,3.72106]
[1739774142287,1.31424017,2687.9,2687.5,0.04120554]
[1739774143000,5.34,2688.1,2687.8,3.72051]
[1739774143180,0.276,2688.0,2687.8,3.72051]
[1739774143695,0.276,2688.0,2687.9,0.04141445]
[1739774144042,0.276,2688.0,2687.5,3.72083]
[1739774144280,0.276,2688.0,2687.5,7.44168]
[1739774144487,0.276,2688.0,2687.6,0.04141445]
[1739774144720,0.276,2688.0,2687.6,3.76219445]
[1739774144894,0.276,2687.9,2687.7,3.72065]
[1739774145590,0.276,2687.9,2687.8,0.04141445]
[1739774145747,5.34,2688.1,2687.2,7.38376974]
[1739774145959,5.34,2688.1,2687.9,3.72027]
[1739774145960,0.275,2688.0,2687.9,3.72027]
[1739774146146,0.275,2688.0,2687.7,3.72062]
[1739774146399,0.275,2688.0,2687.9,3.72037]
[1739774147093,0.275,2688.0,2687.9,3.76178445]
[1739774147791,0.275,2688.0,2687.9,0.04141445]
[1739774148197,0.275,2688.0,2687.8,3.72047]
[1739774148500,0.275,2688.0,2687.9,0.04131452]
[1739774150168,0.275,2688.0,2687.9,3.76168452]
[1739774150348,0.275,2688.0,2687.9,0.04131452]
[1739774150810,0.275,2688.0,2687.7,3.72064]
[1739774151104,0.275,2688.0,2687.9,0.04131452]
[1739774151269,0.275,2688.0,2687.6,7.4415]
[1739774151468,0.275,2688.0,2687.9,0.04131452]
[1739774151669,0.275,2688.0,2687.5,3.72091]
[1739774151905,0.275,2688.0,2687.9,0.04131452]
[1739774152206,0.275,2688.0,2687.9,0.04103295]
[1739774152687,0.275,2688.0,2687.5,3.72086]
[1739774152894,0.275,2688.0,2687.9,0.04103295]
[1739774153397,0.275,2688.0,2687.8,3.7205]
[1739774153550,0.275,2688.0,2687.9,0.03960031]
[1739774153853,0.275,2688.0,2687.5,3.72081]
[1739774154051,0.275,2688.0,2687.9,0.03960031]
[1739774154392,0.275,2688.0,2687.9,0.03820015]
[1739774154591,0.275,2688.0,2687.4,3.72105]
[1739774154802,0.275,2688.0,2687.5,0.0382274]
[1739774155403,0.275,2688.0,2687.6,3.72078]
[1739774155586,0.275,2688.0,2687.7,3.72065]
[1739774155897,0.275,2688.0,2687.8,3.72048]
[1739774156098,0.275,2688.0,2687.8,3.7587074]
[1739774156251,0.275,2688.0,2687.8,0.0382274]
[1739774156783,0.275,2688.0,2687.9,0.0382274]
[1739774156983,0.275,2688.0,2687.8,3.72051]
[1739774157341,0.275,2688.0,2687.9,0.03817291]
[1739774158307,0.275,2688.0,2687.7,3.72059]
[1739774158457,0.275,2688.0,2687.9,0.03817291]
[1739774158971,0.275,2688.0,2687.7,3.72056]
[1739774159198,0.275,2688.0,2687.8,0.03817291]
[1739774159403,0.275,2688.0,2687.4,7.44204]
[1739774159698,0.275,2688.0,2687.9,0.03817291]
[1739774159900,0.275,2688.0,2687.5,3.72091]
[1739774160062,0.275,2688.0,2687.9,0.03807303]
[1739774160258,0.275,2688.0,2687.5,3.72092]
[1739774160586,0.275,2688.0,2687.6,3.72072]
[1739774160781,0.275,2688.0,2687.7,0.03807303]
[1739774160999,0.275,2688.0,2687.7,3.75866303]
[1739774161212,0.275,2688.0,2687.7,0.03807303]
[1739774161414,0.275,2688.0,2687.8,3.72051]
[1739774161915,0.275,2688.0,2687.9,0.03817293]
[1739774162116,5.34,2688.1,2688.0,3.72023]
[1739774162319,1.31498563,2688.4,2688.1,3.72002]
[1739774162477,0.274,2688.3,2688.2,3.71996]
[1739774162676,0.274,2688.3,2688.2,0.03817293]
[1739774163077,0.274,2688.3,2687.8,3.72048]
[1739774163636,0.274,2688.3,2688.0,3.72022]
[1739774163831,0.274,2688.3,2687.9,0.03793681]
[1739774164041,0.274,2688.3,2687.8,3.72048]
[1739774164539,0.274,2688.3,2687.9,0.03793681]
[1739774164877,0.274,2688.3,2688.0,3.72017]
[1739774165190,0.274,2688.3,2688.0,3.72015]
[1739774165396,0.5693,2688.4,2688.1,3.75795681]
[1739774165592,0.274,2688.3,2688.1,3.75795681]
[1739774166237,0.274,2688.3,2688.1,0.03793681]
[1739774166625,0.274,2688.3,2687.9,3.7203]
[1739774166935,0.274,2688.3,2688.2,0.03793681]
[1739774167143,0.274,2688.3,2687.9,3.72028]
[1739774167293,0.274,2688.3,2688.2,0.03793681]
[1739774167490,0.274,2688.3,2687.5,3.72085]
[1739774167690,0.274,2688.3,2687.4,4.54256]
[1739774167691,0.8433,2688.3,2688.2,0.03793681]
[1739774167921,0.8433,2688.3,2687.6,3.72077]
[1739774168122,0.8433,2688.3,2688.2,0.03793681]
[1739774168342,0.8433,2688.3,2687.6,3.72077]
[1739774168658,0.8433,2688.3,2687.8,3.72038]
[1739774168857,0.274,2688.2,2687.9,3.72037]
[1739774169019,0.274,2688.2,2687.9,0.0379913]
[1739774169648,0.274,2688.2,2687.7,3.72065]
[1739774170242,0.274,2688.2,2687.8,0.0379913]
[1739774170610,0.274,2688.2,2687.7,3.72065]
[1739774170861,0.274,2688.2,2687.9,0.0379913]
[1739774171065,0.274,2688.2,2687.7,3.72065]
[1739774171266,0.274,2688.2,2688.0,0.0379913]
[1739774171431,0.274,2688.2,2687.8,3.72044]
[1739774171626,0.274,2688.2,2688.1,0.0379913]
[1739774171848,0.274,2688.2,2687.9,3.7203]
[1739774172048,0.274,2688.2,2688.1,0.0379913]
[1739774172224,0.274,2688.2,2688.0,0.03664803]
[1739774172421,0.274,2688.2,2687.8,3.7205]
[1739774172663,0.274,2688.2,2688.1,0.03664803]
[1739774172870,0.274,2688.2,2687.9,4.54195]
[1739774173167,4.33024652,2688.5,2687.9,8.26225]
[1739774173366,0.273,2688.1,2687.9,4.5419]
[1739774173520,0.273,2688.1,2688.0,0.03664803]
[1739774173720,0.273,2688.1,2688.0,3.75687803]
[1739774174034,0.273,2688.1,2688.0,0.03664803]
[1739774174613,0.273,2688.1,2688.0,3.75687803]
[1739774174876,0.273,2688.1,2688.0,0.03664803]
[1739774175419,0.273,2688.1,2688.0,3.75687803]
[1739774175924,0.273,2688.1,2688.0,0.03664803]
[1739774176366,0.273,2688.1,2687.7,3.72051]
[1739774176614,0.273,2688.1,2687.8,0.03520337]
[1739774176912,0.273,2688.1,2687.8,3.75569337]
[1739774177217,0.273,2688.1,2687.9,0.03520337]
[1739774178366,0.5693,2688.0,2687.9,0.03520337]
[1739774178564,0.5693,2688.0,2687.5,8.23479]
[1739774178881,0.5693,2688.0,2687.6,3.72077]
[1739774179091,0.5693,2688.0,2687.3,4.5142]
[1739774179310,0.55,2687.9,2687.1,4.51451]
[1739774179510,0.55,2687.9,2687.1,4.51449]
[1739774179879,0.55,2687.9,2687.2,3.72133]
[1739774180279,3.55,2687.9,2687.2,3.72133]
[1739774180480,3.55,2687.9,2687.1,8.23589]
[1739774181024,3.55,2687.9,2687.2,3.7213]
[1739774181391,0.55,2687.7,2687.1,3.72139]
[1739774183094,0.5693,2687.8,2687.3,3.72111]
[1739774183291,0.5693,2687.8,2687.3,7.44223]
[1739774183491,0.5693,2687.8,2687.3,3.72111]
[1739774184140,0.5693,2687.8,2687.4,3.72106]
[1739774184293,2.0,2690.0,2687.9,3.3173]
[1739774184493,5.34,2691.0,2687.9,3.3173]
[1739774184494,0.18777043,2689.8,2688.9,3.0]
[1739774184827,0.282,2691.1,2689.7,0.7633]
[1739774184999,0.75663264,2690.9,2690.0,3.71738]
[1739774185196,0.75663264,2690.9,2690.1,3.71725]
[1739774185433,0.75663264,2690.9,2690.5,3.71667]
[1739774186149,0.282,2691.1,2690.5,3.71667]
[1739774186640,0.282,2691.1,2690.4,3.71691]
[1739774187340,0.58259136,2691.5,2690.7,3.7165]
[1739774187544,0.283,2691.2,2690.7,3.7165]
[1739774188046,0.283,2691.2,2690.6,7.28656974]
[1739774188630,0.283,2691.2,2690.6,3.56996974]
[1739774189942,0.283,2691.2,2690.1,3.71727]
[1739774189943,0.283,2691.2,2690.3,3.56996974]
[1739774191040,0.75102934,2691.0,2690.3,3.56996974]
[1739774191709,1.18276943,2690.8,2690.3,3.56996974]
[1739774192355,0.55,2690.7,2690.0,3.56996974]
[1739774193264,0.55,2690.7,2689.7,3.56996974]
[1739774193466,1.18276943,2690.7,2689.7,3.56996974]
[1739774193955,0.55,2690.5,2689.7,3.56996974]
[1739774194125,0.283,2690.4,2689.7,3.56996974]
[1739774195855,0.74345233,2690.2,2689.5,3.71812]
[1739774196411,0.74345233,2690.2,2689.4,4.53411]
[1739774196860,0.74345233,2690.2,2689.4,0.8159]
[1739774197613,0.74345233,2690.2,2689.4,4.53409]
[1739774197809,0.74345233,2690.2,2689.1,3.71857]
[1739774198115,0.74345233,2690.2,2689.3,3.7184]
[1739774198425,4.11996974,2690.1,2689.2,3.71855]
[1739774198628,3.0,2690.0,2689.1,0.8159]
[1739774198813,0.55,2689.9,2688.9,3.71886]
[1739774199315,3.0,2689.7,2688.8,4.53498]
[1739774199628,0.282,2689.6,2688.6,3.71937]
[1739774199826,0.282,2689.6,2688.7,3.71924]
[1739774200029,4.11996974,2689.5,2688.4,4.53549]
[1739774200255,4.11996974,2689.5,2688.5,3.71946]
[1739774201027,0.55,2689.2,2688.1,4.38586974]
[1739774201210,0.55,2689.2,2688.2,0.47939297]
[1739774201415,0.55,2689.2,2688.3,3.71968]
[1739774201641,0.55,2689.2,2688.4,3.71966]
[1739774202215,0.55,2689.2,2688.3,3.71968]
[1739774202474,4.85299497,2689.2,2688.1,4.53587]
[1739774202958,0.55,2689.0,2688.1,3.72005]
[1739774203514,0.55,2689.0,2687.8,0.814]
[1739774203715,3.55,2688.8,2687.8,4.53446]
[1739774203913,0.282,2688.7,2687.8,4.53446]
[1739774204354,3.0,2688.5,2687.5,8.965477]
[1739774204557,3.0,2688.5,2687.6,3.72074]
[1739774204858,3.0,2688.5,2687.5,5.244617]
[1739774204859,0.55,2688.4,2687.3,3.72108]
[1739774205017,0.55,2688.2,2687.2,4.50082]
[1739774205221,3.55,2688.2,2687.3,3.7212]
[1739774205558,3.55,2688.2,2687.2,0.7796]
[1739774205721,0.55,2688.1,2687.2,0.7796]
[1739774205919,0.55,2688.1,2687.1,3.7214]
[1739774206550,0.55,2688.1,2687.0,3.72155]
[1739774207062,0.55,2688.1,2686.9,0.7796]
[1739774207063,0.55,2687.8,2686.9,0.7796]
[1739774207362,0.55,2687.8,2686.6,3.56996974]
[1739774207363,0.55,2687.5,2686.6,0.7796]
[1739774207567,3.56996974,2687.4,2686.3,3.72251]
[1739774207724,3.56996974,2687.4,2686.5,3.7223]
[1739774207925,3.56996974,2687.4,2686.5,7.4446]
[1739774208150,3.56996974,2687.4,2686.5,7.44452]
[1739774208483,3.56996974,2687.4,2686.5,7.44443]
[1739774208688,3.56996974,2687.4,2686.6,3.72216]